bitfinex-derivatives/quotes_BTCF0:USTF0_20250904
["timestamp","ask_amount","ask_price","bid_price","bid_amount"]
[1756980713978,1.39242286,111140.0,111130.0,0.76371]
[1756980714179,1.39242286,111140.0,111130.0,1.13619335]
[1756980714781,1.7649026,111140.0,111130.0,0.74012]
[1756980714968,1.7649026,111140.0,111130.0,0.7633]
[1756980715879,1.7649026,111140.0,111130.0,0.74012]
[1756980716471,1.39241925,111140.0,111130.0,0.7633]
[1756980716674,0.56557925,111140.0,111130.0,0.7633]
[1756980716873,1.39225925,111140.0,111130.0,1.13578335]
[1756980718578,0.31557925,111140.0,111130.0,1.13578335]
[1756980718876,0.29,111140.0,111130.0,2.21274335]
[1756980719074,0.29,111140.0,111130.0,2.30270475]
[1756980719276,0.2664706,111140.0,111130.0,2.05270475]
[1756980719882,0.2664706,111140.0,111130.0,1.96274335]
[1756980720575,0.2664706,111140.0,111130.0,2.05270475]
[1756980720774,0.2664706,111140.0,111130.0,1.96274335]
[1756980721482,0.2664706,111140.0,111130.0,1.96242067]
[1756980723583,0.2664706,111140.0,111130.0,2.05238207]
[1756980724783,0.2664706,111140.0,111130.0,2.31758207]
[1756980725780,0.2664706,111140.0,111130.0,2.22762067]
[1756980726083,0.2664706,111140.0,111130.0,2.31758207]
[1756980727580,0.2664706,111140.0,111130.0,2.22762067]
[1756980731584,0.24582264,111140.0,111130.0,2.31758197]
[1756980731784,0.00026,111180.0,111170.0,0.0388]
[1756980731990,0.09016,111180.0,111170.0,1.5641844]
[1756980732187,0.09016,111180.0,111170.0,1.49256067]
[1756980732487,0.30016,111180.0,111170.0,1.49256067]
[1756980733190,0.30016,111180.0,111170.0,1.1204]
[1756980733490,0.30016,111180.0,111170.0,1.49705067]
[1756980734183,0.3,111180.0,111170.0,3.72709268]
[1756980734690,0.3,111180.0,111170.0,1.13371336]
[1756980734891,0.55,111180.0,111170.0,1.13371336]
[1756980735087,0.55,111180.0,111170.0,1.50587403]
[1756980735792,0.55,111180.0,111170.0,1.20677589]
[1756980735992,0.55016,111180.0,111170.0,1.57893656]
[1756980736590,0.55016,111180.0,111170.0,1.57993656]
[1756980737286,0.55016,111180.0,111170.0,1.20777589]
[1756980737490,0.55016,111180.0,111170.0,1.57993656]
[1756980739488,0.55016,111180.0,111170.0,1.20777589]
[1756980739693,0.55016,111180.0,111170.0,1.57993656]
[1756980740094,0.55016,111180.0,111170.0,1.84513656]
[1756980740890,0.55016,111180.0,111170.0,1.47297589]
[1756980741493,0.55016,111180.0,111170.0,1.84513656]
[1756980741883,1.78656067,111180.0,111170.0,1.20777589]
[1756980742290,1.78656067,111180.0,111170.0,1.19895253]
[1756980742489,1.78656067,111180.0,111170.0,1.17400253]
[1756980742800,1.81232965,111180.0,111170.0,0.45240253]
[1756980743290,1.44016898,111180.0,111170.0,0.83815253]
[1756980743491,1.81232965,111180.0,111170.0,0.83815253]
[1756980743794,1.44016898,111180.0,111170.0,0.83815253]
[1756980743994,1.81232965,111180.0,111170.0,0.83815253]
[1756980744898,1.44016898,111180.0,111170.0,0.83815253]
[1756980745084,1.81232965,111180.0,111170.0,0.83815253]
[1756980745282,1.44016898,111180.0,111170.0,0.83815253]
[1756980745489,1.81228688,111180.0,111170.0,0.83815253]
[1756980745894,0.32592898,111180.0,111170.0,1.21027043]
[1756980746095,0.3,111180.0,111170.0,1.47547043]
[1756980747490,0.3,111180.0,111170.0,1.47551043]
[1756980748086,0.32579468,111180.0,111170.0,1.47551043]
[1756980748287,0.3,111180.0,111170.0,1.81543983]
[1756980748692,0.3,111180.0,111170.0,2.93179353]
[1756980748896,0.3,111180.0,111170.0,1.81543983]
[1756980749291,0.3,111180.0,111170.0,1.72551043]
[1756980749806,0.3,111180.0,111170.0,1.84313816]
[1756980750295,0.3,111180.0,111170.0,1.47102026]
[1756980750496,0.3,111180.0,111170.0,1.84313816]
[1756980750899,0.3,111180.0,111170.0,1.47102026]
[1756980751093,0.3,111180.0,111170.0,1.59313816]
[1756980751303,0.3,111180.0,111170.0,1.10339253]
[1756980751504,0.3,111180.0,111170.0,1.47551043]
[1756980753207,1.16096,111180.0,111170.0,1.10339253]
[1756980753404,1.16096,111180.0,111170.0,1.4754514]
[1756980753807,1.16096,111180.0,111170.0,1.10339253]
[1756980754107,1.16096,111180.0,111170.0,1.4754514]
[1756980754999,1.16096,111180.0,111170.0,1.10339253]
[1756980755198,1.16096,111180.0,111170.0,1.4754514]
[1756980756105,1.16096,111180.0,111170.0,1.10339253]
[1756980756304,1.16096,111180.0,111170.0,1.4754514]
[1756980756506,1.16096,111180.0,111170.0,1.10339253]
[1756980756710,1.16096,111180.0,111170.0,1.4754514]
[1756980756902,1.16096,111180.0,111170.0,1.10339253]
[1756980757206,1.16096,111180.0,111170.0,1.4754514]
[1756980757709,1.16096,111180.0,111170.0,1.10339253]
[1756980758013,1.16096,111180.0,111170.0,1.4754514]
[1756980759507,1.16096,111180.0,111170.0,1.10339253]
[1756980759803,0.3,111180.0,111170.0,1.4754514]
[1756980761407,1.16052,111180.0,111170.0,1.4754514]
[1756980761607,1.16056,111180.0,111170.0,1.4754514]
[1756980761809,0.3,111180.0,111170.0,1.4754514]
[1756980762108,0.3,111180.0,111170.0,1.7254514]
[1756980762298,0.3,111180.0,111170.0,2.57642801]
[1756980762612,0.52630898,111210.0,111200.0,0.03817]
[1756980762909,0.83630898,111210.0,111200.0,1.11102887]
[1756980763111,0.83630898,111210.0,111200.0,0.73897]
[1756980763409,0.83598898,111210.0,111200.0,1.11102887]
[1756980763812,0.80598898,111210.0,111200.0,1.11102887]
[1756980764307,1.17804785,111210.0,111200.0,0.74346]
[1756980764498,1.17836785,111210.0,111200.0,0.74346]
[1756980764701,0.80630898,111210.0,111200.0,0.74346]
[1756980765102,0.74630898,111210.0,111200.0,0.74346]
[1756980766500,0.74630898,111210.0,111200.0,1.11551887]
[1756980768211,1.169,111210.0,111200.0,1.11551887]
[1756980769011,1.16876,111210.0,111200.0,1.11551887]
[1756980769911,0.31,111210.0,111200.0,1.11551887]
[1756980770212,1.16876,111210.0,111200.0,1.11551887]
[1756980771308,1.16792,111210.0,111200.0,1.11551887]
[1756980773014,1.16792,111210.0,111200.0,0.74346]
[1756980773215,1.16792,111210.0,111200.0,1.11551887]
[1756980773406,1.16756,111210.0,111200.0,1.11523594]
[1756980773613,0.31,111210.0,111200.0,1.11523594]
[1756980774013,1.1678,111210.0,111200.0,1.11523594]
[1756980774509,1.16764,111210.0,111200.0,1.11523594]
[1756980775118,1.16764,111210.0,111200.0,0.74346]
[1756980775309,1.16764,111210.0,111200.0,1.11523594]
[1756980776017,1.16764,111210.0,111200.0,0.74346]
[1756980776218,1.16764,111210.0,111200.0,1.11523594]
[1756980776609,1.16764,111210.0,111200.0,0.74346]
[1756980776810,1.12364,111210.0,111200.0,1.11523594]
[1756980777504,1.12364,111210.0,111200.0,0.74346]
[1756980777817,1.7681608,111210.0,111200.0,0.35804]
[1756980779222,1.5181608,111210.0,111200.0,0.35804]
[1756980779613,1.14638486,111210.0,111200.0,0.35804]
[1756980779817,1.5181608,111210.0,111200.0,0.35804]
[1756980780428,1.8789608,111210.0,111200.0,0.35804]
[1756980780719,1.8789608,111210.0,111200.0,0.34429]
[1756980780720,3.24428862,111210.0,111200.0,0.34429]
[1756980780918,3.59428862,111210.0,111200.0,0.01449]
[1756980781114,3.64260083,111210.0,111200.0,0.01449]
[1756980781313,3.64260083,111210.0,111200.0,0.00449]
[1756980781520,3.64260083,111210.0,111190.0,0.0001]
[1756980781824,1.84790376,111200.0,111190.0,0.0001]
[1756980782023,2.81859312,111200.0,111180.0,0.0001]
[1756980782321,3.48749594,111190.0,111180.0,0.0281]
[1756980782522,5.54556862,111190.0,111180.0,0.0281]
[1756980782823,5.22556862,111190.0,111170.0,4e-05]
[1756980783014,1.86625888,111180.0,111170.0,0.26004]
[1756980783214,2.21900374,111180.0,111170.0,0.26004]
[1756980783424,2.22081154,111180.0,111170.0,0.26004]
[1756980784723,2.80081154,111180.0,111170.0,0.26004]
[1756980785125,3.65561154,111180.0,111170.0,4e-05]
[1756980785314,3.66481334,111180.0,111170.0,4e-05]
[1756980785917,3.66481334,111180.0,111160.0,0.0001]
[1756980786113,0.73302789,111170.0,111160.0,0.0001]
[1756980786315,1.67577275,111170.0,111150.0,0.0001]
[1756980786517,0.37222789,111160.0,111150.0,0.0401]
[1756980786723,3.59553902,111160.0,111140.0,0.0001]
[1756980786926,1.84971156,111150.0,111140.0,0.1001]
[1756980787123,2.17245642,111150.0,111140.0,0.1]
[1756980787429,3.02697642,111150.0,111140.0,0.1]
[1756980787926,3.40697642,111150.0,111140.0,0.1]
[1756980788124,3.65697642,111150.0,111130.0,0.0001]
[1756980788326,2.63346789,111140.0,111130.0,0.2401]
[1756980788523,3.81041275,111140.0,111120.0,0.01365]
[1756980788724,2.22328486,111140.0,111130.0,0.01355]
[1756980788921,2.59541275,111140.0,111130.0,0.39817]
[1756980789117,3.0544,111140.0,111130.0,0.39817]
[1756980789317,3.0514,111140.0,111130.0,0.39817]
[1756980789626,3.0514,111140.0,111130.0,0.03817]
[1756980789627,3.42366789,111140.0,111130.0,0.03817]
[1756980789828,2.56966789,111140.0,111130.0,0.06817]
[1756980790129,3.42362789,111140.0,111130.0,0.07217]
[1756980790322,3.0514,111140.0,111130.0,0.38217]
[1756980790522,3.42362789,111140.0,111130.0,0.07217]
[1756980791331,3.42362789,111140.0,111130.0,0.05217]
[1756980792526,3.0514,111140.0,111130.0,0.05217]
[1756980792732,3.42362789,111140.0,111130.0,0.05217]
[1756980792927,3.42362789,111140.0,111130.0,0.02755]
[1756980793134,3.42362789,111140.0,111130.0,0.014]
[1756980793731,3.05312,111140.0,111130.0,0.02866]
[1756980793926,3.41392,111140.0,111130.0,0.02866]
[1756980794128,3.78614789,111140.0,111130.0,0.02866]
[1756980794631,3.78614789,111140.0,111130.0,0.014]
[1756980794830,3.80941469,111140.0,111130.0,0.014]
[1756980795530,4.05941469,111140.0,111130.0,0.014]
[1756980796431,2.84293469,111140.0,111130.0,0.05176]
[1756980796632,2.56966789,111140.0,111130.0,0.04176]
[1756980796927,2.56966789,111140.0,111130.0,0.06176]
[1756980797126,3.05448,111140.0,111130.0,0.38176]
[1756980797330,3.42670789,111140.0,111130.0,0.06176]
[1756980797634,3.42670789,111140.0,111130.0,0.40176]
[1756980797832,3.42670789,111140.0,111130.0,0.04176]
[1756980798125,3.42670789,111140.0,111130.0,0.39866]
[1756980798332,3.42670789,111140.0,111130.0,0.04176]
[1756980798830,3.42670789,111140.0,111130.0,0.40176]
[1756980799135,3.42670789,111140.0,111130.0,0.04176]
[1756980800133,3.42670789,111140.0,111130.0,0.01866]
[1756980800335,3.78750789,111140.0,111130.0,0.01866]
[1756980800630,3.81076616,111140.0,111130.0,0.01866]
[1756980801629,3.78750789,111140.0,111130.0,0.01866]
[1756980803031,3.78750789,111140.0,111130.0,0.32866]
[1756980803234,3.81078676,111140.0,111130.0,0.42176]
[1756980803533,3.81078676,111140.0,111130.0,0.04176]
[1756980803933,3.81078676,111140.0,111130.0,0.37176]
[1756980804634,3.81078676,111140.0,111130.0,0.04176]
[1756980804835,3.43855887,111140.0,111130.0,0.04176]
[1756980805134,3.81078676,111140.0,111130.0,0.36176]
[1756980805326,3.81078676,111140.0,111130.0,0.04176]
[1756980805528,3.81101071,111140.0,111130.0,0.04176]
[1756980805726,3.81101071,111140.0,111130.0,0.36176]
[1756980806428,3.81101071,111140.0,111130.0,0.04176]
[1756980806429,3.45057071,111140.0,111130.0,0.04176]
[1756980806632,3.81137071,111140.0,111130.0,0.42176]
[1756980807230,2.95397071,111140.0,111130.0,0.42176]
[1756980807428,3.45033071,111140.0,111130.0,0.04176]
[1756980807624,3.81113071,111140.0,111130.0,0.004]
[1756980807831,4.06113071,111140.0,111130.0,0.004]
[1756980808428,5.17848623,111140.0,111120.0,0.00459]
[1756980808632,0.73225184,111130.0,111120.0,0.24459]
[1756980808828,1.09384292,111130.0,111120.0,0.00449]
[1756980809029,2.79119844,111130.0,111120.0,0.00449]
[1756980809333,2.79119844,111130.0,111110.0,0.0001]
[1756980809334,1e-05,111120.0,111110.0,0.0001]
[1756980809526,1.96808029,111120.0,111110.0,0.04]
[1756980809724,1.15332426,111120.0,111110.0,0.04]
[1756980809928,3.12691978,111120.0,111110.0,0.04]
[1756980810934,1.63711242,111120.0,111110.0,0.04]
[1756980811135,3.12691978,111120.0,111110.0,0.04]
[1756980811329,3.12891978,111120.0,111100.0,0.01815]
[1756980811531,0.73350951,111110.0,111100.0,0.08815]
[1756980811731,1.05678838,111110.0,111100.0,0.08805]
[1756980811929,1.91230838,111110.0,111100.0,0.0745]
[1756980812740,1.96988839,111110.0,111100.0,0.0745]
[1756980812943,1.96988839,111110.0,111100.0,0.07]
[1756980813244,1.96064683,111110.0,111100.0,0.07]
[1756980814236,1.96064683,111110.0,111100.0,0.06996]
[1756980814646,1.96164683,111110.0,111100.0,0.06996]
[1756980814841,1.11509498,111110.0,111100.0,0.06996]
[1756980815142,1.10612683,111110.0,111100.0,0.06996]
[1756980815338,1.96060683,111110.0,111100.0,0.06996]
[1756980815538,1.96052683,111110.0,111100.0,0.06996]
[1756980815738,1.10612683,111110.0,111100.0,0.06996]
[1756980815937,1.969414,111110.0,111100.0,0.06996]
[1756980816146,1.96040683,111110.0,111100.0,0.06996]
[1756980816539,1.10612683,111110.0,111100.0,0.06996]
[1756980816734,1.96032683,111110.0,111100.0,0.06996]
[1756980818040,1.10612683,111110.0,111100.0,0.06996]
[1756980818250,1.96016683,111110.0,111100.0,0.08462]
[1756980819542,1.10612683,111110.0,111100.0,0.10772]
[1756980819845,1.95980683,111110.0,111100.0,0.10772]
[1756980820853,1.58709732,111110.0,111100.0,0.10772]
[1756980821146,1.95980683,111110.0,111100.0,0.10772]
[1756980822451,1.10612683,111110.0,111100.0,0.10772]
[1756980822652,1.95892683,111110.0,111100.0,0.10772]
[1756980825048,1.05778838,111110.0,111100.0,0.10772]
[1756980825347,1.90986838,111110.0,111100.0,0.10772]
[1756980827356,1.90902838,111110.0,111100.0,0.10772]
[1756980827653,0.74532683,111110.0,111100.0,0.46852]
[1756980827847,1.54810838,111110.0,111100.0,0.46852]
[1756980828558,1.59644683,111110.0,111100.0,0.46852]
[1756980828854,0.32427887,111110.0,111100.0,0.71852]
[1756980829046,1.17487887,111110.0,111100.0,1.09122951]
[1756980829246,1.17487887,111110.0,111100.0,1.38126951]
[1756980829755,1.54758838,111110.0,111100.0,0.39776]
[1756980830839,1.95672683,111110.0,111100.0,0.39776]
[1756980831045,1.95672683,111110.0,111100.0,0.05]
[1756980831248,1.97281222,111110.0,111100.0,0.05]
[1756980833453,1.97283473,111110.0,111100.0,0.05]
[1756980834146,1.90841089,111110.0,111100.0,0.05]
[1756980834346,1.9730221,111110.0,111100.0,0.05]
[1756980834747,1.9930221,111110.0,111090.0,0.01476]
[1756980834958,0.79814323,111100.0,111090.0,0.26476]
[1756980835154,1.1214221,111100.0,111090.0,0.26466]
[1756980835348,1.05681089,111100.0,111090.0,0.28791]
[1756980835949,1.07501566,111100.0,111090.0,0.28791]
[1756980836153,2.19321172,111100.0,111090.0,0.26466]
[1756980836354,2.24169495,111100.0,111090.0,0.26466]
[1756980837348,2.19321172,111100.0,111090.0,0.26466]
[1756980838056,2.25782293,111100.0,111090.0,0.26466]
[1756980838648,2.27782293,111100.0,111090.0,0.26466]
[1756980840353,4.17982293,111100.0,111090.0,0.26466]
[1756980840551,4.09521172,111100.0,111090.0,0.26466]
[1756980840757,0.02346,111090.0,111070.0,0.01466]
[1756980841057,1.65450503,111080.0,111070.0,0.03791]
[1756980841258,2.0077839,111080.0,111070.0,0.03791]
[1756980841758,1.95923089,111080.0,111070.0,0.03791]
[1756980842154,1.95923089,111080.0,111070.0,0.03991]
[1756980842354,3.09392823,111080.0,111070.0,0.002]
[1756980842561,1.96656089,111080.0,111070.0,0.002]
[1756980843449,1.96656089,111080.0,111060.0,0.02396748]
[1756980843760,0.39419202,111070.0,111060.0,0.04711748]
[1756980843952,0.73747089,111070.0,111060.0,0.04711748]
[1756980844261,1.58607089,111070.0,111060.0,0.04711748]
[1756980844451,0.73747089,111070.0,111060.0,0.04711748]
[1756980844653,1.58579089,111070.0,111060.0,0.05011748]
[1756980845055,1.58579089,111070.0,111060.0,0.04980748]
[1756980845362,1.58579089,111070.0,111060.0,0.04086]
[1756980845549,1.58796514,111070.0,111060.0,0.04086]
[1756980846558,1.58796514,111070.0,111060.0,0.03786]
[1756980846760,1.58796514,111070.0,111060.0,0.03986]
[1756980849058,0.36673887,111070.0,111060.0,0.03986]
[1756980849247,1.21429887,111070.0,111060.0,0.40066]
[1756980849453,1.58720514,111070.0,111060.0,0.40066]
[1756980850259,1.58716514,111070.0,111060.0,0.40066]
[1756980850652,0.73964514,111070.0,111060.0,0.40066]
[1756980850852,1.58732514,111070.0,111060.0,0.40066]
[1756980851856,0.02411,111050.0,110990.0,3.3004601]
[1756980852049,0.3608,111020.0,110990.0,4.2504601]
[1756980852254,0.37290627,111000.0,110990.0,4.27132173]
[1756980852457,0.37290627,111000.0,110990.0,4.470913]
[1756980853263,0.37290627,111000.0,110990.0,4.478913]
[1756980853963,0.37290627,111000.0,110990.0,4.470913]
[1756980854265,0.37290627,111000.0,110990.0,3.270633]
[1756980854463,1.85242508,111000.0,110990.0,3.430243]
[1756980854757,1.85242508,111000.0,110990.0,4.017483]
[1756980855066,1.85242508,111000.0,110990.0,3.170843]
[1756980855265,2.13242508,111000.0,110990.0,3.170843]
[1756980855467,1.85242508,111000.0,110990.0,3.170843]
[1756980855656,2.09242508,111000.0,110990.0,3.184993]
[1756980856263,2.09242508,111000.0,110990.0,3.176993]
[1756980856457,2.09242508,111000.0,110990.0,3.181993]
[1756980856969,1.85242508,111000.0,110990.0,1.279673]
[1756980857572,2.09242508,111000.0,110990.0,1.279673]
[1756980857773,1.85242508,111000.0,110990.0,1.279673]
[1756980858371,2.01242508,111000.0,110990.0,1.279673]
[1756980859074,2.01242508,111000.0,110990.0,1.279633]
[1756980859265,1.85242508,111000.0,110990.0,1.279633]
[1756980859867,1.85242508,111000.0,110990.0,1.392326]
[1756980861576,1.85242508,111000.0,110990.0,1.52265771]
[1756980861769,2.14242508,111000.0,110990.0,2.36785771]
[1756980861975,2.14242508,111000.0,110990.0,2.25516471]
[1756980862776,2.18653508,111000.0,110990.0,2.24101471]
[1756980862976,1.86653508,111000.0,110990.0,2.35370771]
[1756980863271,2.14653508,111000.0,110990.0,2.35370771]
[1756980863577,1.86653508,111000.0,110990.0,2.35370771]
[1756980863776,2.14653508,111000.0,110990.0,2.35370771]
[1756980864077,2.14653508,111000.0,110990.0,1.16847761]
[1756980864273,3.01384508,111000.0,110990.0,0.62887461]
[1756980864671,3.01384508,111000.0,110990.0,0.46887461]
[1756980865479,2.16940508,111000.0,110990.0,0.46887461]
[1756980865675,3.01380508,111000.0,110990.0,0.46887461]
[1756980865876,0.3608,111000.0,110990.0,0.55894831]
[1756980866179,0.73370627,111000.0,110990.0,2.11794831]
[1756980866375,0.73370627,111000.0,110990.0,2.12094831]
[1756980866580,0.73370627,111000.0,110990.0,2.23364131]
[1756980867886,0.73370627,111000.0,110990.0,2.24304131]
[1756980868584,0.3608,111000.0,110990.0,2.24304131]
[1756980868784,0.73370627,111000.0,110990.0,2.24304131]
[1756980870485,0.3608,111010.0,110990.0,2.60654758]
[1756980870679,0.0001,111010.0,110990.0,2.96744758]
[1756980870986,0.37300627,111010.0,110990.0,2.23184831]
[1756980871378,0.37300627,111010.0,110990.0,2.39433594]
[1756980872387,0.0001,111010.0,110990.0,2.39433594]
[1756980872590,0.37290627,111000.0,110990.0,2.39433594]
[1756980872784,0.0001,111010.0,110990.0,2.64433594]
[1756980873089,0.37300627,111010.0,110990.0,2.48184831]
[1756980873278,0.37300627,111010.0,110990.0,1.63484831]
[1756980873486,0.37300627,111010.0,110990.0,1.63884831]
[1756980873886,0.37300627,111010.0,110990.0,2.48228831]
[1756980874090,0.37300627,111010.0,110990.0,1.63884831]
[1756980874592,0.37300627,111010.0,110990.0,2.48220831]
[1756980875391,0.37300627,111010.0,110990.0,2.48120831]
[1756980876392,0.74791627,111010.0,110990.0,2.48080831]
[1756980876586,0.37290627,111000.0,110990.0,2.49004831]
[1756980876782,0.3609,111010.0,110990.0,2.24004831]
[1756980877091,0.37290627,111000.0,110990.0,1.39724831]
[1756980877292,0.37290627,111000.0,110990.0,2.24124831]
[1756980877591,0.37290627,111000.0,110990.0,1.48740831]
[1756980879194,0.37290627,111000.0,110990.0,1.54259831]
[1756980879894,0.37290627,111000.0,110990.0,1.52059831]
[1756980880489,1.21901,111010.0,110990.0,1.52059831]
[1756980880692,0.37290627,111000.0,110990.0,1.52059831]
[1756980882093,0.37290627,111000.0,110990.0,1.51859831]
[1756980882298,0.37290627,111000.0,110990.0,1.52159831]
[1756980885900,1.21901,111010.0,110990.0,1.61167201]
[1756980886101,0.37290627,111000.0,110990.0,1.52159831]
[1756980886504,0.37501,111010.0,110990.0,1.61167201]
[1756980886696,0.37290627,111000.0,110990.0,1.52159831]
[1756980887398,1.25922,111010.0,110990.0,1.61167201]
[1756980887593,0.37290627,111000.0,110990.0,1.52159831]
[1756980887993,0.37290627,111000.0,110990.0,1.51859831]
[1756980888191,0.37290627,111000.0,110990.0,1.52159831]
[1756980889896,0.05654,111010.0,110990.0,1.52159831]
[1756980890093,1.27384627,111000.0,110990.0,1.52159831]
[1756980890497,0.0001,111010.0,110990.0,2.19450458]
[1756980890699,0.0001,111010.0,110990.0,2.26539831]
[1756980890899,0.3608,111020.0,111010.0,0.06104]
[1756980891093,0.37290627,111020.0,111010.0,1.21238974]
[1756980891297,0.7084767,111020.0,111010.0,1.21238974]
[1756980891698,0.7649167,111020.0,111010.0,1.19822974]
[1756980891894,0.42934627,111020.0,111010.0,1.19822974]
[1756980892302,0.24844627,111020.0,111010.0,1.19922974]
[1756980892499,1.32159627,111020.0,111010.0,1.56002974]
[1756980892700,0.42065627,111020.0,111010.0,1.61621974]
[1756980893300,0.39305627,111020.0,111010.0,1.61621974]
[1756980893702,1.29399627,111020.0,111010.0,1.61621974]
[1756980894007,0.94869,111020.0,111010.0,1.61621974]
[1756980894209,1.32159627,111020.0,111010.0,1.61621974]
[1756980894408,1.32159627,111020.0,111010.0,1.78653586]
[1756980895409,0.94869,111020.0,111010.0,1.78653586]
[1756980895709,1.32159627,111020.0,111010.0,1.78653586]
[1756980896811,1.37803627,111020.0,111010.0,1.78653586]
[1756980897309,1.33301995,111020.0,111010.0,1.78653586]
[1756980897611,1.33301995,111020.0,111010.0,1.62561974]
[1756980897911,1.27657995,111020.0,111010.0,1.62561974]
[1756980898720,1.33301995,111020.0,111010.0,1.47926974]
[1756980899012,1.33301995,111020.0,111010.0,1.48376974]
[1756980899712,1.42814881,111030.0,111020.0,0.0900462]
[1756980899909,1.53486508,111030.0,111020.0,1.2335526]
[1756980900113,2.98559876,111030.0,111020.0,1.2335526]
[1756980900307,2.98559876,111030.0,111020.0,1.5943526]
[1756980900509,2.14539876,111030.0,111020.0,1.5943526]
[1756980900714,2.26453876,111030.0,111020.0,1.5943526]
[1756980900914,0.7517304,111030.0,111020.0,1.5943526]
[1756980901108,0.04785,111040.0,111030.0,0.193108]
[1756980901307,1.52867275,111040.0,111030.0,1.40413432]
[1756980901502,0.43860775,111040.0,111030.0,1.41353432]
[1756980901717,1.82009428,111050.0,111040.0,0.1930999]
[1756980902010,2.19300055,111050.0,111040.0,1.1724999]
[1756980902216,3.03300055,111050.0,111040.0,1.1724999]
[1756980902415,2.67220055,111050.0,111040.0,1.1724999]
[1756980902614,3.03300055,111050.0,111040.0,1.1724999]
[1756980903012,1.83220055,111050.0,111040.0,1.1724999]
[1756980903208,2.65881055,111050.0,111040.0,1.1724999]
[1756980903408,2.65881055,111050.0,111040.0,1.29214941]
[1756980903713,2.64980055,111050.0,111040.0,1.29214941]
[1756980904016,1.77904055,111050.0,111040.0,1.29214941]
[1756980904211,2.61960055,111050.0,111040.0,1.29214941]
[1756980904611,2.61564055,111050.0,111040.0,1.29214941]
[1756980905514,3.03278619,111050.0,111040.0,1.29214941]
[1756980905813,2.13678619,111050.0,111040.0,1.29214941]
[1756980906012,2.10544619,111050.0,111040.0,1.29214941]
[1756980906210,2.83647619,111050.0,111040.0,1.29214941]
[1756980906407,2.76022619,111050.0,111040.0,1.29214941]
[1756980906611,2.72980619,111050.0,111040.0,1.29214941]
[1756980906910,2.36900619,111050.0,111040.0,1.65294941]
[1756980907111,1.25841619,111050.0,111040.0,1.65294941]
[1756980907318,0.04785,111060.0,111050.0,0.193092]
[1756980907513,1.25663191,111060.0,111050.0,1.4439377]
[1756980907712,0.41779191,111060.0,111050.0,1.4439377]
[1756980907908,1.6847253,111060.0,111050.0,1.4439377]
[1756980908115,1.31191339,111060.0,111050.0,1.4439377]
[1756980908418,1.6855653,111060.0,111050.0,1.4439377]
[1756980908820,1.6369653,111060.0,111050.0,1.4439377]
[1756980909022,1.6339653,111060.0,111050.0,1.4439377]
[1756980909410,1.6289653,111060.0,111050.0,1.4439377]
[1756980909619,1.6059653,111060.0,111050.0,1.4439377]
[1756980909814,1.6059653,111060.0,111050.0,1.4440377]
[1756980910118,1.6059653,111060.0,111050.0,1.5160917]
[1756980910824,1.95659573,111060.0,111050.0,1.1552917]
[1756980911024,2.32940764,111060.0,111050.0,1.1552917]
[1756980911620,2.39844764,111060.0,111050.0,1.1552917]
[1756980911825,2.39844764,111060.0,111050.0,1.0991017]
[1756980911826,2.68844764,111060.0,111050.0,1.0991017]
[1756980912013,2.93844764,111060.0,111050.0,1.0522217]
[1756980912219,2.89844764,111060.0,111050.0,1.0522217]
[1756980912525,2.64844764,111060.0,111050.0,1.0522217]
[1756980912718,2.90844764,111060.0,111050.0,1.0522217]
[1756980913120,2.64844764,111060.0,111050.0,1.0522217]
[1756980913321,2.91844764,111060.0,111050.0,1.0522217]
[1756980913628,2.64844764,111060.0,111050.0,0.9621997]
[1756980913938,2.97520764,111060.0,111050.0,1.0553297]
[1756980914237,3.33600764,111060.0,111050.0,1.0553297]
[1756980915039,3.09600764,111060.0,111050.0,1.0553297]
[1756980915541,3.33600764,111060.0,111050.0,1.0553297]
[1756980915842,3.09600764,111060.0,111050.0,1.0553297]
[1756980916136,4.08646154,111060.0,111050.0,1.0553297]
[1756980916735,4.35646154,111060.0,111050.0,1.0553297]
[1756980916930,4.08646154,111060.0,111050.0,1.0553297]
[1756980917337,4.40646154,111060.0,111050.0,0.14315448]
[1756980917541,4.40646154,111060.0,111050.0,0.20310187]
[1756980917941,4.40646154,111060.0,111050.0,0.37086739]
[1756980918142,0.090022,111050.0,111040.0,0.0001]
[1756980918340,0.090022,111050.0,111030.0,0.02102632]
[1756980918341,1.58127784,111040.0,111030.0,0.02102632]
[1756980918644,3.09919784,111040.0,111030.0,0.98102632]
[1756980918844,3.99979784,111040.0,111030.0,0.98102632]
[1756980919043,3.67979784,111040.0,111030.0,0.98102632]
[1756980919347,4.01979784,111040.0,111030.0,0.98102632]
[1756980919844,3.92979784,111040.0,111030.0,0.17661371]
[1756980920145,6.12159784,111040.0,111030.0,0.35093284]
[1756980920642,5.22099784,111040.0,111030.0,0.35093284]
[1756980920944,6.12159784,111040.0,111030.0,0.33]
[1756980921349,5.28447784,111040.0,111030.0,0.33]
[1756980921553,6.12135784,111040.0,111030.0,0.33]
[1756980921743,4.81264211,111040.0,111030.0,0.33]
[1756980922047,4.81264211,111040.0,111030.0,0.39686]
[1756980922245,4.4398302,111040.0,111030.0,0.39686]
[1756980922448,4.81264211,111040.0,111030.0,0.39686]
[1756980922747,4.81264211,111040.0,111030.0,0.33]
[1756980923248,4.77260211,111040.0,111030.0,0.33]
[1756980924445,3.96604211,111040.0,111030.0,0.97686]
[1756980924649,4.80228211,111040.0,111030.0,0.39686]
[1756980925348,4.80228211,111040.0,111030.0,0.33]
[1756980925548,4.80204211,111040.0,111030.0,0.87]
[1756980925748,4.80204211,111040.0,111030.0,0.33]
[1756980926447,5.42485402,111040.0,111030.0,0.33]
[1756980926653,5.05204211,111040.0,111030.0,0.33]
[1756980927350,4.6789502,111040.0,111030.0,0.33]
[1756980927549,5.05176211,111040.0,111030.0,0.33]
[1756980929453,4.15116211,111040.0,111030.0,0.33]
[1756980929650,5.05176211,111040.0,111030.0,0.33]
[1756980931356,5.05136211,111040.0,111030.0,0.33]
[1756980931553,4.21604211,111040.0,111030.0,0.33]
[1756980931759,5.05124211,111040.0,111030.0,0.33]
[1756980932956,5.05120211,111040.0,111030.0,0.33]
[1756980933952,5.06829211,111040.0,111030.0,0.33]
[1756980934558,5.06829211,111040.0,111030.0,0.31932]
[1756980936652,4.81829211,111040.0,111030.0,0.31932]
[1756980936853,4.81829211,111040.0,111030.0,0.31942]
[1756980937054,5.44110402,111040.0,111030.0,0.31942]
[1756980937554,6.18672784,111040.0,111030.0,0.31942]